bitfinex/quotes_SOLUSD_20250602
["timestamp","ask_amount","ask_price","bid_price","bid_amount"]
[1748845468852,39.56,155.15,155.13,14.66821117]
[1748845470136,39.56,155.15,155.14,14.66821117]
[1748845471133,10.28,155.16,155.14,14.66821117]
[1748845471334,39.56,155.15,155.14,14.66821117]
[1748845472849,39.56,155.15,155.13,14.66821117]
[1748845473031,39.56,155.15,155.12,21.11473449]
[1748845473549,10.28,155.16,155.12,21.11473449]
[1748845473550,39.54,155.14,155.12,21.11473449]
[1748845473936,39.54,155.14,155.13,14.66821117]
[1748845475069,39.54,155.14,155.13,21.11441757]
[1748845475826,10.28,155.16,155.13,21.11441757]
[1748845476139,39.54,155.14,155.13,6.4462064]
[1748845476956,39.54,155.14,155.13,26.0]
[1748845477156,39.54,155.14,155.13,40.66821117]
[1748845478558,10.28,155.16,155.13,40.66821117]
[1748845478742,39.54,155.14,155.13,40.66821117]
[1748845479529,39.54,155.14,155.13,47.11441757]
[1748845481837,54.20821117,155.14,155.12,26.0]
[1748845482043,39.54,155.14,155.13,14.66821117]
[1748845482839,10.28,155.16,155.13,14.66821117]
[1748845483054,39.54,155.15,155.12,26.0]
[1748845483228,39.54,155.15,155.14,14.66821117]
[1748845484255,39.54,155.15,155.14,21.11400206]
[1748845484644,10.28,155.16,155.14,21.11400206]
[1748845484839,10.28,155.16,155.15,14.66821117]
[1748845485152,49.82,155.16,155.15,14.66821117]
[1748845485529,10.28,155.16,155.15,21.11358661]
[1748845485945,155.0802,155.22,155.15,21.11358661]
[1748845485946,10.28,155.22,155.18,26.0]
[1748845486148,10.28,155.22,155.21,14.66821117]
[1748845486529,49.82,155.22,155.21,14.66821117]
[1748845486963,92.82,155.25,155.21,40.66821117]
[1748845487259,92.82,155.25,155.24,14.66821117]
[1748845487849,132.34,155.25,155.24,14.66821117]
[1748845488450,39.52,155.25,155.24,14.66821117]
[1748845490749,39.52,155.25,155.24,21.10984992]
[1748845490959,10.28,155.26,155.24,21.10984992]
[1748845491266,10.28,155.26,155.25,14.66821117]
[1748845491471,49.8,155.26,155.25,14.66821117]
[1748845492349,10.28,155.26,155.25,14.66821117]
[1748845492561,49.8,155.26,155.25,14.66821117]
[1748845492956,10.26,155.3,155.25,21.109435]
[1748845493155,39.52,155.29,155.28,14.66821117]
[1748845495157,10.26,155.3,155.28,14.66821117]
[1748845495367,39.52,155.29,155.28,14.66821117]
[1748845496577,39.52,155.29,155.27,14.66821117]
[1748845498164,39.52,155.29,155.26,14.66821117]
[1748845498461,39.52,155.29,155.27,14.66821117]
[1748845501378,54.18821117,155.29,155.24,32.44153154]
[1748845501574,39.52,155.29,155.26,14.66821117]
[1748845501775,39.52,155.29,155.24,32.44153154]
[1748845501776,39.52,155.29,155.28,14.66821117]
[1748845501979,39.52,155.29,155.24,48.54562842]
[1748845501980,39.52,155.29,155.27,14.66821117]
[1748845503078,10.26,155.3,155.27,21.10856475]
[1748845503280,10.26,155.3,155.28,14.66821117]
[1748845503469,39.5,155.29,155.28,14.66821117]
[1748845503859,10.26,155.3,155.29,6.43956468]
[1748845504169,10.26,155.3,155.29,21.10777585]
[1748845504489,14.32511648,155.34,155.29,21.10777585]
[1748845504656,39.5,155.33,155.31,14.66821117]
[1748845504857,39.5,155.32,155.3,14.66821117]
[1748845505084,39.5,155.32,155.29,40.66821117]
[1748845505280,54.16821117,155.32,155.29,26.0]
[1748845505468,24.92821117,155.31,155.29,26.0]
[1748845505665,24.92821117,155.31,155.27,21.10856166]
[1748845505877,39.5,155.3,155.28,14.66821117]
[1748845507676,39.5,155.3,155.27,40.66821117]
[1748845507877,39.5,155.3,155.27,14.66821117]
[1748845510893,45.93926198,155.3,155.27,14.66821117]
[1748845511796,39.5,155.3,155.27,14.66821117]
[1748845511997,39.5,155.3,155.28,14.66821117]
[1748845512673,39.5,155.3,155.28,6.43995849]
[1748845512888,10.26,155.31,155.28,21.10816966]
[1748845513076,39.5,155.3,155.29,14.66821117]
[1748845513689,10.26,155.31,155.29,14.66821117]
[1748845513891,39.5,155.3,155.29,14.66821117]
[1748845515073,39.5,155.3,155.29,21.10777585]
[1748845516491,10.26,155.31,155.29,21.10777585]
[1748845516707,10.26,155.31,155.3,14.66821117]
[1748845517578,49.74,155.31,155.3,14.66821117]
[1748845517802,49.74,155.31,155.29,21.10777585]
[1748845518008,49.74,155.31,155.29,14.66821117]
[1748845518502,49.74,155.31,155.29,21.10769263]
[1748845518687,49.74,155.31,155.3,14.66821117]
[1748845519997,49.74,155.31,155.3,21.1073612]
[1748845520213,49.74,155.31,155.3,14.66821117]
[1748845521505,49.74,155.31,155.29,6.43940866]
[1748845521816,49.74,155.31,155.3,14.66821117]
[1748845523518,49.74,155.31,155.3,21.1073612]
[1748845532815,10.26,155.35,155.3,37.20523628]
[1748845533126,39.48,155.34,155.33,26.0]
[1748845533298,10.26,155.35,155.33,40.66821117]
[1748845533613,39.48,155.34,155.33,26.0]
[1748845534118,10.26,155.35,155.33,26.0]
[1748845534295,39.48,155.34,155.33,32.43790639]
[1748845534713,39.48,155.34,155.33,47.10611756]
[1748845535716,39.48,155.34,155.33,14.66821117]
[1748845536515,39.48,155.34,155.33,40.66821117]
[1748845545194,39.48,155.34,155.33,35.33199487]
[1748845545923,39.48,155.34,155.33,41.76990126]
[1748845548225,39.46,155.35,155.33,41.76990126]
[1748845548398,39.46,155.35,155.34,9.33199487]
[1748845549004,39.46,155.35,155.34,15.76948682]
[1748845549230,30.91783236,155.38,155.34,15.76948682]
[1748845549407,39.46,155.38,155.37,35.33199487]
[1748845550625,10.26,155.39,155.37,35.33199487]
[1748845551023,39.46,155.38,155.37,35.33199487]
[1748845551231,39.46,155.38,155.37,40.5751915]
[1748845551416,39.46,155.38,155.37,26.0]
[1748845551617,10.26,155.39,155.37,40.5751915]
[1748845551818,39.46,155.38,155.37,40.5751915]
[1748845556616,39.46,155.38,155.37,14.5751915]
[1748845560206,10.26,155.39,155.37,14.5751915]
[1748845560434,10.26,155.39,155.38,14.5751915]
[1748845560637,49.72,155.39,155.38,14.5751915]
[1748845563537,49.72,155.39,155.35,26.0]
[1748845563838,49.72,155.39,155.37,14.5751915]
[1748845564018,49.72,155.39,155.38,14.5751915]
[1748845566513,49.72,155.39,155.38,21.01102622]
[1748845567647,49.72,155.39,155.38,14.5751915]
[1748845573244,49.72,155.39,155.38,9.32779821]
[1748845574641,49.72,155.39,155.36,15.76446144]
[1748845574841,49.72,155.39,155.37,9.32779821]
[1748845576054,49.72,155.39,155.34,16.09360981]
[1748845576055,48.78779821,155.39,155.34,35.32779821]
[1748845576441,9.32779821,155.38,155.34,35.32779821]
[1748845576646,39.44,155.37,155.34,35.32779821]
[1748845577330,39.44,155.37,155.34,41.76521764]
[1748845577756,39.44,155.37,155.34,32.43741943]
[1748845578141,48.76779821,155.37,155.32,15.76611909]
[1748845578946,9.32779821,155.36,155.32,15.76611909]
[1748845579572,9.32779821,155.36,155.32,6.43832088]
[1748845579728,9.32779821,155.34,155.3,32.43900105]
[1748845579928,39.44,155.33,155.3,32.43900105]
[1748845580145,39.44,155.33,155.3,6.43900105]
[1748845581758,39.44,155.33,155.29,6.43956468]
[1748845581940,39.44,155.33,155.29,15.76736289]
[1748845583164,39.44,155.33,155.3,9.32779821]
[1748845583463,39.44,155.33,155.3,15.76655074]
[1748845583838,10.24,155.36,155.32,9.32779821]
[1748845584038,39.46,155.35,155.33,9.32779821]
[1748845584867,10.24,155.36,155.33,9.32779821]
[1748845585072,39.46,155.35,155.33,9.32779821]
[1748845585241,39.46,155.35,155.34,6.43749195]
[1748845585973,10.24,155.36,155.34,6.43749195]
[1748845586149,39.46,155.35,155.34,6.43749195]
[1748845586349,39.46,155.35,155.33,21.0201529]
[1748845587241,6.13656129,155.36,155.33,21.0201529]
[1748845591058,6.13656129,155.36,155.32,6.43832088]
[1748845591258,6.13656129,155.36,155.33,14.58239982]
[1748845593756,6.13656129,155.36,155.34,6.43749195]
[1748845599454,6.13656129,155.36,155.33,21.0201538]
[1748845599853,6.13656129,155.36,155.33,14.58239982]
[1748845600057,20.71896111,155.36,155.32,21.02056859]
[1748845600282,14.58239982,155.35,155.32,6.43816877]
[1748845600961,6.13656129,155.36,155.32,6.43816877]
[1748845600962,20.71896111,155.36,155.32,6.43816877]
[1748845605693,6.13656129,155.36,155.32,21.02056859]
[1748845605881,20.71896111,155.36,155.32,21.02056859]
[1748845607282,15.47023355,155.36,155.32,15.77184103]
[1748845610887,6.13656129,155.36,155.32,15.77184103]
[1748845611095,15.47023355,155.36,155.32,15.77184103]
[1748845618872,6.13656129,155.36,155.34,9.33367226]
[1748845620386,6.13656129,155.36,155.33,9.33367226]
[1748845620893,6.13656129,155.36,155.34,6.43749195]
[1748845621707,6.13656129,155.36,155.34,15.77116421]
[1748845622473,168.47367226,155.38,155.34,15.77116421]
[1748845625996,168.47367226,155.38,155.34,15.77116421]
[1748845628709,9.33367226,155.35,155.3,6.43915003]
[1748845628876,9.33367226,155.34,155.3,6.43915003]
[1748845629080,9.33367226,155.34,155.3,15.77282229]
[1748845629697,9.33367226,155.34,155.3,6.43915003]
[1748845629999,9.33367226,155.34,155.3,15.77282229]
[1748845631513,39.44,155.35,155.3,15.77282229]
[1748845631677,159.14,155.38,155.34,9.33367226]
[1748845631879,159.14,155.38,155.35,9.33367226]
[1748845632798,159.14,155.38,155.35,15.77074069]
[1748845633301,159.14,155.38,155.35,6.43706843]
[1748845633501,159.14,155.38,155.34,15.77104115]
[1748845635387,168.47367226,155.38,155.34,9.33367226]
[1748845635586,168.47367226,155.38,155.34,15.77113536]
[1748845636201,168.47367226,155.38,155.34,9.33367226]
[1748845637304,168.47367226,155.38,155.33,17.27332622]
[1748845637888,159.14,155.38,155.35,9.33367226]
[1748845638089,159.14,155.38,155.34,9.33367226]
[1748845638289,168.47367226,155.38,155.34,9.33367226]
[1748845638493,159.14,155.38,155.34,9.33367226]
[1748845638989,159.14,155.38,155.33,7.93965396]
[1748845639190,159.14,155.38,155.34,9.33367226]
[1748845639404,159.14,155.38,155.34,15.77079625]
[1748845639585,159.14,155.38,155.36,9.33367226]
[1748845639790,159.14,155.38,155.37,9.33367226]
[1748845640791,159.14,155.38,155.36,15.76994984]
[1748845642899,10.24,155.38,155.36,15.76994984]
[1748845644126,10.24,155.38,155.37,9.33367226]
[1748845644647,148.9,155.41,155.37,9.33367226]
[1748845644796,10.52964724,155.42,155.4,9.33367226]
[1748845645001,10.52964724,155.42,155.41,9.33367226]
[1748845645608,0.30964724,155.42,155.41,9.33367226]
[1748845646408,0.30964724,155.42,155.41,15.76826462]
[1748845647215,0.30964724,155.42,155.41,20.99922627]
[1748845650719,0.30964724,155.42,155.41,14.56463391]
[1748845651015,0.30964724,155.42,155.4,20.9994452]
[1748845651797,0.30964724,155.42,155.4,6.43481129]
[1748845652001,0.30964724,155.42,155.4,14.56463391]
[1748845653140,0.30964724,155.42,155.4,20.99959265]
[1748845653904,0.30964724,155.42,155.41,14.56463391]
[1748845654530,0.30964724,155.42,155.41,20.99922627]
[1748845657023,0.30964724,155.42,155.4,6.43487364]
[1748845657227,0.30964724,155.42,155.41,14.56463391]
[1748845660314,0.30964724,155.42,155.4,14.56463391]
[1748845663829,0.30964724,155.42,155.4,20.99962906]
[1748845664027,0.30964724,155.42,155.41,14.56463391]
[1748845665234,0.30964724,155.42,155.4,14.56463391]
[1748845665937,0.30964724,155.42,155.41,14.56463391]
[1748845667215,0.30964724,155.42,155.41,9.32345359]
[1748845672223,0.30964724,155.42,155.41,15.75804595]
[1748845678249,0.30964724,155.42,155.41,62.01799481]
[1748845680030,148.9,155.48,155.45,6.43293663]
[1748845680263,10.22,155.5,155.47,9.32345359]
[1748845680452,10.22,155.5,155.48,9.32345359]
[1748845680630,10.22,155.5,155.45,32.43293663]
[1748845680831,10.22,155.5,155.46,9.32345359]
[1748845680832,25.97444935,155.5,155.46,9.32345359]
[1748845681135,19.54345359,155.5,155.46,9.32345359]
[1748845682047,10.22,155.5,155.46,9.32345359]
[1748845682256,10.22,155.5,155.46,15.75595351]
[1748845682438,10.22,155.5,155.47,9.32345359]
[1748845684744,10.22,155.5,155.48,9.32345359]
[1748845684941,10.22,155.5,155.49,9.32345359]
[1748845685139,10.22,155.5,155.48,9.32345359]
[1748845686943,10.22,155.5,155.47,15.7554116]
[1748845687370,10.22,155.5,155.47,9.32345359]
[1748845688455,16.65098045,155.5,155.47,9.32345359]
[1748845689464,10.22,155.5,155.47,9.32345359]
[1748845690863,16.65089482,155.5,155.47,9.32345359]
[1748845691042,16.65089482,155.5,155.46,9.32345359]
[1748845691554,10.22,155.5,155.46,9.32345359]
[1748845691941,10.22,155.5,155.45,32.43277077]
[1748845692148,10.22,155.5,155.47,9.32345359]
[1748845693648,10.22,155.5,155.48,9.32345359]
[1748845694469,155.32979459,155.53,155.48,9.32345359]
[1748845694643,58.92345359,155.52,155.48,9.32345359]
[1748845695548,49.6,155.52,155.48,9.32345359]
[1748845695751,58.92345359,155.52,155.48,9.32345359]
[1748845696855,58.92345359,155.52,155.48,15.7551079]
[1748845699971,58.92345359,155.52,155.48,9.32345359]
[1748845700175,65.35356518,155.52,155.47,15.75541097]
[1748845701371,9.32345359,155.51,155.47,15.75541097]
[1748845702766,9.32345359,155.5,155.46,10.94175359]
[1748845703147,9.32345359,155.5,155.46,17.3742572]
[1748845703348,10.2,155.5,155.47,9.32345359]
[1748845705972,10.2,155.5,155.47,15.75553283]
[1748845710560,10.2,155.5,155.46,1.6183]
[1748845710561,19.52345359,155.5,155.46,9.32345359]
[1748845711683,10.2,155.5,155.47,9.32345359]
[1748845713002,10.2,155.5,155.46,6.43243907]
[1748845713003,16.63092207,155.5,155.46,9.32345359]
[1748845713164,9.32345359,155.47,155.43,6.43376439]
[1748845713361,9.32345359,155.47,155.43,15.75721798]
[1748845713561,9.32345359,155.49,155.44,9.32345359]
[1748845713996,158.22345359,155.49,155.44,9.32345359]
[1748845714292,158.22345359,155.49,155.45,9.32345359]
[1748845715081,158.22345359,155.49,155.45,15.75637547]
[1748845716969,9.32345359,155.48,155.44,9.32345359]
[1748845718696,9.32345359,155.47,155.43,6.43376439]
[1748845718997,9.32345359,155.46,155.42,15.75748228]
[1748845719562,39.38,155.48,155.42,15.75748228]
[1748845719760,9.32345359,155.47,155.42,15.75748228]
[1748845720705,9.32345359,155.46,155.42,26.0]
[1748845722369,9.32345359,155.46,155.42,41.75738813]
[1748845725200,9.32345359,155.46,155.42,15.75738813]
[1748845725399,9.32345359,155.46,155.42,41.75738813]
[1748845725614,9.32345359,155.47,155.43,9.32345359]
[1748845726602,9.32345359,155.46,155.42,41.75738813]
[1748845726999,10.2,155.45,155.42,41.75738813]
[1748845730580,10.2,155.45,155.43,9.32345359]
[1748845731103,10.2,155.45,155.44,6.43335048]
[1748845731514,10.2,155.45,155.44,15.75680407]
[1748845731807,10.2,155.45,155.44,6.43335048]
[1748845737522,10.2,155.45,155.44,15.75680407]
[1748845739210,10.2,155.47,155.44,15.75680407]
[1748845740308,10.2,155.47,155.45,9.32345359]
[1748845742231,10.2,155.47,155.44,15.75664151]
[1748845747302,10.2,155.47,155.43,17.28157953]
[1748845749415,10.2,155.47,155.44,15.75668596]
[1748845751516,10.2,155.47,155.45,9.32345359]
[1748845752831,10.2,155.47,155.46,6.43252283]
[1748845753028,10.2,155.47,155.46,15.75597642]
[1748845754416,10.2,155.51,155.46,15.75597642]
[1748845754629,10.2,155.51,155.49,9.32345359]
[1748845755005,10.2,155.51,155.48,9.32345359]
[1748845756329,19.52345359,155.51,155.47,9.32345359]
[1748845756544,10.2,155.51,155.47,9.32345359]
[1748845756711,10.2,155.51,155.48,9.32345359]
[1748845757308,10.2,155.51,155.48,15.75478435]
[1748845758428,10.2,155.51,155.49,9.32345359]
[1748845758731,10.2,155.51,155.48,15.75478435]
[1748845759631,10.2,155.51,155.5,9.32345359]
[1748845762134,10.2,155.51,155.48,6.43133076]
[1748845762316,10.2,155.51,155.5,9.32345359]
[1748845762823,10.2,155.51,155.49,9.32345359]
[1748845764845,10.2,155.51,155.49,6.43117]
[1748845765729,10.2,155.51,155.48,15.7549932]
[1748845768829,10.2,155.51,155.49,9.32345359]
[1748845770642,10.2,155.51,155.47,8.08332324]
[1748845770816,10.2,155.51,155.47,17.40677683]
[1748845771527,10.2,155.51,155.48,9.32345359]
[1748845773239,10.2,155.51,155.48,15.7551281]
[1748845774942,10.2,155.51,155.48,9.32345359]
[1748845776123,10.2,155.51,155.49,9.32345359]
[1748845776345,10.2,155.51,155.48,9.32345359]
[1748845777738,10.2,155.51,155.47,8.08327022]
[1748845777946,10.2,155.51,155.48,9.32345359]
[1748845780253,10.2,155.51,155.48,15.75513277]
[1748845781745,10.2,155.51,155.49,9.32345359]
[1748845783257,214.17308159,155.53,155.49,9.32345359]
[1748845784949,9.32345359,155.52,155.48,15.75513277]
[1748845786252,9.32345359,155.51,155.47,9.32345359]
[1748845786956,9.32345359,155.49,155.45,41.75622008]
[1748845787556,9.32345359,155.5,155.45,41.75622008]
[1748845788640,9.32345359,155.49,155.45,41.75622008]
[1748845789329,9.32345359,155.5,155.46,9.32345359]
[1748845789955,15.75399013,155.51,155.46,15.7559408]
[1748845790152,9.32345359,155.5,155.46,9.32345359]
[1748845791053,9.32345359,155.49,155.44,6.43327015]
[1748845791435,9.32345359,155.48,155.44,9.32345359]
[1748845792263,9.32345359,155.47,155.43,9.32345359]
[1748845792463,9.32345359,155.47,155.42,6.43401987]
[1748845792751,9.32345359,155.47,155.42,15.75747346]
[1748845794636,9.32345359,155.47,155.43,9.32345359]
[1748845797741,9.32345359,155.47,155.42,15.75747346]
[1748845798142,9.32345359,155.47,155.43,9.32345359]
[1748845798464,9.32345359,155.47,155.43,15.75719955]
[1748845799546,10.18,155.48,155.43,15.75719955]
[1748845799745,19.50345359,155.48,155.43,15.75719955]
[1748845800656,25.9351509,155.48,155.43,15.75719955]
[1748845801036,19.50345359,155.48,155.44,9.32345359]
[1748845801570,10.18,155.48,155.45,9.32345359]
[1748845801743,10.18,155.48,155.46,9.32345359]
[1748845801949,10.18,155.48,155.45,9.32345359]
[1748845802566,10.18,155.48,155.45,15.75627031]
[1748845803450,19.50345359,155.48,155.44,15.75663672]
[1748845804068,9.32345359,155.47,155.43,17.31503424]
[1748845805165,15.7555993,155.47,155.42,32.43403169]
[1748845805370,16.61183657,155.48,155.43,9.32345359]
[1748845805558,9.32345359,155.47,155.43,9.32345359]
[1748845807075,9.32345359,155.47,155.43,15.75712204]
[1748845807381,16.61183657,155.48,155.43,15.75712204]
[1748845807552,9.32345359,155.47,155.43,15.75712204]
[1748845808772,9.32345359,155.47,155.43,9.32345359]
[1748845809973,9.32345359,155.46,155.42,41.7574815]
[1748845813666,9.32345359,155.44,155.4,26.0]
[1748845814276,9.32345359,155.44,155.4,32.43484908]
[1748845814577,9.32345359,155.43,155.4,32.43484908]
[1748845815265,19.50345359,155.44,155.4,41.75830267]
[1748845815684,10.18,155.44,155.41,9.32345359]
[1748845816970,10.18,155.44,155.42,9.32345359]
[1748845817384,10.18,155.44,155.42,15.7575964]
[1748845818673,10.18,155.44,155.41,15.75804595]
[1748845820664,19.50345359,155.44,155.4,15.7583323]
[1748845821188,19.50345359,155.44,155.4,6.43487871]
[1748845822160,10.18,155.44,155.42,9.32345359]
[1748845823280,10.18,155.48,155.43,9.32345359]
[1748845823464,10.18,155.48,155.46,9.32345359]
[1748845824287,10.18,155.48,155.46,6.43252283]
[1748845826264,10.18,155.48,155.46,20.99197559]
[1748845826670,10.18,155.48,155.47,14.55945276]
[1748845827681,10.18,155.48,155.47,20.99156184]
[1748845828461,163.45945276,155.52,155.47,37.07183456]
[1748845828462,148.9,155.52,155.47,37.07183456]
[1748845828680,14.55945276,155.53,155.49,14.55945276]
[1748845830066,14.55945276,155.53,155.49,20.99045443]
[1748845830489,20.9891867,155.53,155.48,20.99102064]
[1748845830691,14.55945276,155.51,155.47,14.55945276]
[1748845831585,14.55945276,155.5,155.46,20.99186225]
[1748845834092,24.71945276,155.5,155.46,20.99186225]
[1748845834901,10.16,155.5,155.48,14.55945276]
[1748845838498,10.16,155.5,155.48,20.99098974]
[1748845839170,10.16,155.5,155.49,14.55945276]
[1748845840875,10.16,155.5,155.49,20.99073451]
[1748845842702,10.16,155.5,155.48,14.55945276]
[1748845845000,10.16,155.5,155.48,20.99103474]
[1748845845208,10.16,155.5,155.47,20.9914136]
[1748845845395,24.71945276,155.5,155.46,14.55945276]
[1748845846007,10.16,155.5,155.47,14.55945276]
[1748845846681,10.16,155.5,155.47,20.9914513]
[1748845851211,10.16,155.5,155.48,14.55945276]
[1748845851596,10.16,155.5,155.49,14.55945276]
[1748845853099,159.06,155.53,155.49,14.55945276]
[1748845853814,159.06,155.53,155.5,20.99032092]
[1748845854013,159.06,155.53,155.51,14.55945276]
[1748845855298,159.06,155.53,155.52,14.55945276]
[1748845855517,10.16,155.53,155.52,14.55945276]
[1748845861317,10.16,155.53,155.51,14.55945276]
[1748845864921,10.16,155.53,155.5,14.55945276]
[1748845865607,24.71945276,155.53,155.49,22.59162104]
[1748845867718,14.55945276,155.52,155.49,1.6009]
[1748845867912,14.55945276,155.52,155.48,14.55945276]
[1748845869399,14.55945276,155.52,155.47,32.43184029]
[1748845869605,14.55945276,155.52,155.48,14.55945276]
[1748845869932,20.98980987,155.52,155.48,14.55945276]
[1748845870722,14.55945276,155.49,155.45,1.5723]
[1748845870921,24.71945276,155.48,155.44,14.55945276]
[1748845872022,14.55945276,155.46,155.42,14.55945276]
[1748845872213,14.55945276,155.45,155.41,1.6606]
[1748845874011,14.55945276,155.44,155.4,14.55945276]
[1748845874209,6.43297619,155.45,155.39,14.55945276]
[1748845874513,14.55945276,155.44,155.4,14.55945276]
[1748845874828,10.16,155.43,155.4,14.55945276]
[1748845875214,10.16,155.43,155.39,14.55945276]
[1748845876908,10.16,155.43,155.4,14.55945276]
[1748845877425,10.16,155.43,155.42,14.55945276]
[1748845886429,10.16,155.43,155.4,20.99435126]
[1748845887939,10.16,155.43,155.41,14.55945276]
[1748845888244,10.16,155.43,155.42,6.43417835]
[1748845889441,10.16,155.43,155.42,20.99363111]
[1748845889742,159.04,155.47,155.42,20.99363111]
[1748845889921,159.04,155.47,155.43,14.55945276]
[1748845890530,173.59945276,155.47,155.43,14.55945276]
[1748845891345,14.55945276,155.46,155.41,40.55945276]
[1748845891645,14.55945276,155.46,155.41,46.99383442]
[1748845893444,148.9,155.47,155.44,14.55945276]
[1748845893624,148.9,155.47,155.45,14.55945276]
[1748845893930,148.9,155.47,155.46,14.55945276]
[1748845894131,148.9,155.47,155.42,1.6033]
[1748845894335,148.9,155.47,155.45,14.55945276]
[1748845895455,148.9,155.47,155.46,6.43252283]
[1748845896750,10.14,155.48,155.46,6.43252283]
[1748845898822,10.14,155.48,155.46,14.55945276]
[1748845899224,10.14,155.48,155.47,14.55945276]
[1748845900241,10.14,155.48,155.47,20.99156184]
[1748845907726,10.14,155.48,155.47,6.43210908]
[1748845910341,10.14,155.48,155.47,20.99156184]
[1748845914460,10.14,155.48,155.47,46.99156184]
[1748845914765,10.14,155.52,155.47,64.59463456]
[1748845915059,10.14,155.52,155.5,14.55945276]
[1748845915669,10.14,155.52,155.5,20.98996282]
[1748845915873,10.14,155.52,155.51,14.55945276]
[1748845917046,10.14,155.52,155.51,20.98990739]
[1748845918664,148.9,155.54,155.51,20.98990739]
[1748845918861,148.9,155.54,155.53,14.55945276]
[1748845920742,148.9,155.54,155.53,20.98908048]
[1748845921051,10.14,155.56,155.53,20.98908048]
[1748845922962,10.14,155.56,155.52,14.55945276]
[1748845923947,10.14,155.56,155.53,6.42962772]
[1748845924764,10.14,155.56,155.53,20.98908048]
[1748845928082,10.14,155.56,155.54,14.55945276]
[1748845929154,10.14,155.56,155.54,20.98846762]
[1748845930152,10.14,155.56,155.55,14.55945276]
[1748845930757,21.95804725,155.59,155.55,14.55945276]
[1748845930956,21.95804725,155.59,155.56,14.55945276]
[1748845931154,21.95804725,155.59,155.56,20.9878284]
[1748845933357,21.95804725,155.59,155.57,14.55945276]
[1748845934252,21.95804725,155.59,155.58,14.55945276]
[1748845934888,92.56,155.66,155.58,42.09175276]
[1748845935083,102.7,155.66,155.64,14.55945276]
[1748845935278,102.7,155.66,155.65,14.55945276]
[1748845937866,102.7,155.66,155.64,14.55945276]
[1748845939373,102.7,155.66,155.64,20.98439359]
[1748845939574,102.7,155.66,155.65,14.55945276]
[1748845940766,0.8703907,155.67,155.65,14.55945276]
[1748845940971,0.8703907,155.67,155.66,14.55945276]
[1748845941265,0.8703907,155.67,155.66,20.98371075]
[1748845942074,0.8703907,155.67,155.66,22.68206596]
[1748845942581,0.8703907,155.67,155.66,22.66453051]
[1748845947185,0.8703907,155.67,155.66,1.68081976]
[1748845954399,0.8703907,155.67,155.66,16.24027252]
[1748845955079,0.8703907,155.67,155.66,22.66453051]
[1748845957374,0.8703907,155.67,155.66,1.68081976]
[1748845958113,0.8703907,155.67,155.66,8.10507775]
[1748845958322,0.8703907,155.67,155.66,22.66453051]
[1748845963111,0.8703907,155.67,155.66,48.66453051]
[1748845963415,0.8703907,155.67,155.66,22.66453051]
[1748845963904,0.8703907,155.67,155.66,41.45634094]
[1748845966002,0.8703907,155.67,155.66,39.77552118]
[1748845968485,0.8703907,155.67,155.66,6.42425799]
[1748845968804,0.8703907,155.67,155.66,20.98371075]
[1748845969686,0.8703907,155.67,155.66,22.20199069]
[1748845975304,0.8703907,155.67,155.66,7.64253793]
[1748845975503,0.8703907,155.67,155.66,22.20199069]
[1748845977301,0.8703907,155.67,155.66,48.20199069]
[1748845977524,0.8703907,155.67,155.66,22.20199069]
[1748845977921,0.8703907,155.67,155.66,48.34415226]
[1748845978128,0.8703907,155.67,155.66,55.55325388]
[1748845978324,0.8703907,155.67,155.66,40.99380112]
[1748845978510,0.8703907,155.67,155.66,55.55325388]
[1748845981623,10.12,155.73,155.69,26.0]
[1748845981822,10.12,155.73,155.72,14.55945276]
[1748845982321,10.12,155.73,155.72,22.66270527]
[1748845983732,37.50002308,155.73,155.72,1.68146983]
[1748845983924,56.14967194,155.73,155.72,1.68146983]
[1748845984112,22.94057032,155.73,155.72,1.68146983]
[1748845984311,37.50002308,155.73,155.72,1.68146983]
[1748845984828,56.14967194,155.73,155.72,1.68146983]
[1748845995242,37.50002308,155.73,155.72,1.68146983]
[1748845995427,24.67945276,155.73,155.72,1.68146983]
[1748845996222,31.10082308,155.73,155.72,1.68146983]
[1748846000733,49.75047194,155.73,155.72,1.68146983]